bitfinex-derivatives/quotes_BTCF0:USTF0_20250411
["timestamp","ask_amount","ask_price","bid_price","bid_amount"]
[1744401028592,0.2933882,83913.0,83912.0,0.21272859]
[1744401028797,0.2933882,83913.0,83912.0,0.21276859]
[1744401031201,0.6541882,83913.0,83912.0,0.21276859]
[1744401031405,0.1192325,83910.0,83909.0,0.0324]
[1744401031592,0.1192396,83905.0,83904.0,0.00017875]
[1744401031907,0.4800396,83905.0,83904.0,0.00017875]
[1744401032104,0.0596212,83904.0,83896.0,0.0324]
[1744401032303,0.1192509,83897.0,83896.0,0.0324]
[1744401032502,0.1990509,83897.0,83896.0,0.0324]
[1744401032806,0.1192552,83894.0,83893.0,1e-08]
[1744401033000,0.1192637,83888.0,83887.0,9.841e-05]
[1744401033206,0.1192836,83874.0,83861.0,0.35534071]
[1744401033401,0.4800836,83874.0,83869.0,0.0331]
[1744401033800,0.4800836,83874.0,83873.0,0.21753768]
[1744401034097,0.5450836,83874.0,83873.0,0.21749768]
[1744401034299,0.5450836,83874.0,83873.0,0.21753768]
[1744401034498,0.5450836,83874.0,83873.0,0.21749768]
[1744401034703,0.5450836,83874.0,83873.0,0.21753768]
[1744401034894,0.5450836,83874.0,83873.0,0.00480909]
[1744401037303,0.1192893,83870.0,83869.0,1e-08]
[1744401037504,0.1193064,83858.0,83857.0,0.1193609]
[1744401038107,0.0596524,83860.0,83859.0,0.119305]
[1744401038411,0.1789386,83871.0,83870.0,0.1192865]
[1744401038600,0.4186,83873.0,83872.0,0.1192865]
[1744401038804,0.5378851,83873.0,83872.0,0.1192865]
[1744401039502,0.4186,83873.0,83872.0,0.1192865]
[1744401039902,0.5378851,83873.0,83872.0,0.1192865]
[1744401042306,0.4186,83873.0,83872.0,0.1192865]
[1744401042498,0.4186,83873.0,83872.0,0.1508865]
[1744401043006,0.4186,83873.0,83872.0,0.1839865]
[1744401043209,0.4186,83873.0,83872.0,0.2010388]
[1744401043405,0.5378851,83873.0,83872.0,0.2010388]
[1744401043598,0.1192851,83873.0,83872.0,0.20118516]
[1744401043799,0.1192835,83875.0,83874.0,0.178924]
[1744401044109,0.1192835,83875.0,83874.0,0.19612662]
[1744401044309,0.1192835,83875.0,83874.0,0.0596418]
[1744401044807,0.0596392,83878.0,83876.0,0.0596404]
[1744401045110,0.0596392,83878.0,83877.0,0.1192794]
[1744401045512,0.1192808,83876.0,83875.0,0.0596411]
[1744401046208,0.1192808,83876.0,83875.0,0.076782]
[1744401046408,0.1192808,83876.0,83875.0,0.0596411]
[1744401046602,0.1192808,83876.0,83875.0,0.06049153]
[1744401047112,0.1192808,83876.0,83875.0,0.0775958]
[1744401047312,0.1192808,83876.0,83875.0,0.077601]
[1744401049601,0.1192808,83876.0,83875.0,0.07770992]
[1744401050712,0.1192808,83876.0,83875.0,0.07685949]
[1744401051105,0.1192808,83876.0,83875.0,0.07766992]
[1744401052709,0.00017875,83882.0,83881.0,0.1192737]
[1744401052915,0.00017875,83882.0,83881.0,0.13649209]
[1744401053109,0.00017875,83882.0,83881.0,0.49729209]
[1744401053511,0.00017875,83882.0,83881.0,0.5091829]
[1744401054213,0.11945105,83882.0,83881.0,0.13649209]
[1744401055012,0.15015105,83882.0,83881.0,0.13653209]
[1744401055215,0.18275105,83882.0,83881.0,0.13653209]
[1744401055416,0.18275105,83882.0,83881.0,0.13649209]
[1744401055714,0.18275105,83882.0,83881.0,0.13653209]
[1744401055918,0.15015105,83882.0,83881.0,0.13653209]
[1744401056311,0.15015105,83882.0,83881.0,0.13649209]
[1744401056516,0.00017875,83882.0,83881.0,0.13649209]
[1744401056711,0.00017875,83882.0,83881.0,0.13730252]
[1744401057014,0.11945105,83882.0,83881.0,0.13730252]
[1744401057217,0.00017875,83882.0,83881.0,0.49810252]
[1744401059820,0.00017875,83882.0,83881.0,0.13730252]
[1744401060026,0.00017875,83882.0,83881.0,0.52840252]
[1744401060221,0.00017875,83882.0,83881.0,0.16760252]
[1744401060422,0.00017875,83882.0,83881.0,0.52840252]
[1744401061317,0.00017875,83882.0,83881.0,0.55950252]
[1744401061540,0.005,83888.0,83887.0,0.1192652]
[1744401061736,0.0002329,83901.0,83898.0,0.1192495]
[1744401061935,0.0002329,83901.0,83898.0,0.49716467]
[1744401062144,0.0002729,83901.0,83898.0,0.59076467]
[1744401062333,0.0002729,83901.0,83898.0,0.59080467]
[1744401062640,0.0002329,83901.0,83898.0,0.59080467]
[1744401063747,0.0002329,83901.0,83900.0,0.1192467]
[1744401063935,0.0002329,83901.0,83900.0,0.13636187]
[1744401064137,0.0002329,83901.0,83900.0,0.20086187]
[1744401064935,0.1194782,83901.0,83900.0,0.16826187]
[1744401065141,0.0002329,83901.0,83900.0,0.16830187]
[1744401065441,0.0304329,83901.0,83900.0,0.20057279]
[1744401065630,0.1496782,83901.0,83900.0,0.01682609]
[1744401065826,0.5426782,83901.0,83900.0,0.13603279]
[1744401066032,0.5426782,83901.0,83900.0,0.13607279]
[1744401066734,0.5426782,83901.0,83900.0,0.01682609]
[1744401066940,0.1788863,83894.0,83893.0,0.0596282]
[1744401067538,0.1788863,83894.0,83893.0,0.1789248]
[1744401067739,0.2412863,83894.0,83893.0,0.1789248]
[1744401067944,0.0624,83894.0,83893.0,0.1789248]
[1744401068136,0.0624,83894.0,83893.0,0.2090248]
[1744401068537,0.1816552,83894.0,83893.0,0.2090248]
[1744401068830,0.0624,83894.0,83893.0,0.2090248]
[1744401069030,0.0319,83900.0,83899.0,0.1192481]
[1744401069232,0.11964512,83901.0,83900.0,0.1829467]
[1744401069431,0.0321329,83901.0,83900.0,0.1829467]
[1744401069738,0.1514182,83901.0,83900.0,0.1829467]
[1744401070745,0.1514182,83901.0,83900.0,0.1192467]
[1744401071133,0.1514182,83901.0,83900.0,0.1493467]
[1744401074348,0.1514182,83901.0,83900.0,0.1826467]
[1744401075343,0.1514182,83901.0,83900.0,0.1493467]
[1744401077148,0.1195182,83901.0,83900.0,0.1819467]
[1744401077852,0.1495182,83901.0,83900.0,0.1819467]
[1744401078052,0.1495182,83901.0,83900.0,0.1493467]
[1744401079046,0.1495182,83901.0,83900.0,0.16573415]
[1744401079349,0.1495182,83901.0,83900.0,0.13563415]
[1744401079556,0.1495182,83901.0,83900.0,0.13567415]
[1744401080255,0.1495182,83901.0,83900.0,0.13558826]
[1744401080546,0.1495182,83901.0,83900.0,0.16598826]
[1744401081150,0.1495182,83901.0,83900.0,0.13558826]
[1744401081339,0.1816182,83901.0,83900.0,0.16598826]
[1744401081541,0.0323729,83901.0,83900.0,0.55878826]
[1744401081841,0.0002329,83901.0,83900.0,0.55878826]
[1744401082047,0.0002729,83901.0,83900.0,0.55878826]
[1744401082445,0.0002329,83901.0,83900.0,0.55878826]
[1744401082645,0.0002729,83901.0,83900.0,0.55878826]
[1744401082846,0.0002329,83901.0,83900.0,0.55878826]
[1744401083049,0.0002729,83901.0,83900.0,0.55878826]
[1744401085849,0.0002729,83901.0,83900.0,0.55849081]
[1744401090759,0.0312,83906.0,83905.0,0.1192396]
[1744401090950,0.0312,83906.0,83905.0,0.13524371]
[1744401091149,0.0629,83906.0,83905.0,0.19935414]
[1744401091452,0.0317,83906.0,83905.0,0.19935414]
[1744401091652,0.0319329,83906.0,83905.0,0.19935414]
[1744401091854,0.151171,83906.0,83905.0,0.19935414]
[1744401093562,0.151171,83906.0,83905.0,0.01681454]
[1744401093754,0.151171,83906.0,83905.0,0.01689209]
[1744401093755,0.433171,83906.0,83905.0,0.01689209]
[1744401093954,0.183171,83906.0,83905.0,0.13617169]
[1744401094353,0.183171,83906.0,83905.0,0.16827169]
[1744401095360,0.0002729,83906.0,83905.0,0.16827169]
[1744401095557,0.0002729,83906.0,83905.0,0.19917169]
[1744401095762,0.00017886,83907.0,83906.0,0.1192381]
[1744401095958,0.00017886,83907.0,83906.0,0.23091976]
[1744401096265,0.00017886,83907.0,83906.0,0.23173019]
[1744401096759,0.00041176,83907.0,83906.0,0.21564853]
[1744401097958,0.00041176,83907.0,83906.0,0.23162554]
[1744401098853,0.00041176,83907.0,83906.0,0.21564853]
[1744401100863,0.00017886,83907.0,83906.0,0.23084836]
[1744401101253,0.00041176,83907.0,83906.0,0.23165879]
[1744401105764,0.00017886,83907.0,83906.0,0.23165879]
[1744401105963,0.00017886,83907.0,83906.0,0.2148381]
[1744401106264,0.00045176,83907.0,83906.0,0.2148381]
[1744401106561,0.00045176,83907.0,83906.0,0.21564853]
[1744401106965,0.00045176,83907.0,83906.0,0.2316746]
[1744401107755,0.00045176,83907.0,83906.0,0.2000746]
[1744401107960,0.00045176,83907.0,83906.0,0.18408853]
[1744401108162,0.06505176,83907.0,83906.0,0.18408853]
[1744401109268,0.18428846,83907.0,83906.0,0.15278853]
[1744401109567,0.18428846,83907.0,83906.0,0.03355043]
[1744401109771,0.54508846,83907.0,83906.0,0.12008853]
[1744401109976,0.54508846,83907.0,83906.0,0.13613225]
[1744401110283,0.54508846,83907.0,83906.0,0.13609225]
[1744401110462,0.54508846,83907.0,83906.0,0.01685415]
[1744401110768,0.1192381,83906.0,83905.0,0.21303309]
[1744401110957,0.1192381,83906.0,83905.0,0.33227269]
[1744401111156,0.4332381,83906.0,83905.0,0.33227269]
[1744401111361,0.4332381,83906.0,83905.0,0.33231269]
[1744401111566,0.1832381,83906.0,83905.0,0.33231269]
[1744401111767,0.183511,83906.0,83905.0,0.33231269]
[1744401111969,0.0642729,83906.0,83905.0,0.36301269]
[1744401112165,0.183511,83906.0,83905.0,0.39371269]
[1744401112562,0.183551,83906.0,83905.0,0.39371269]
[1744401112772,0.183511,83906.0,83905.0,0.39371269]
[1744401112966,0.0643129,83906.0,83905.0,0.39371269]
[1744401113162,0.183551,83906.0,83905.0,0.39371269]
[1744401113362,0.183551,83906.0,83905.0,0.36301269]
[1744401113872,0.183551,83906.0,83905.0,0.1499796]
[1744401114075,0.0643129,83906.0,83905.0,0.1499796]
[1744401114375,0.183551,83906.0,83905.0,0.1499796]
[1744401114770,0.183551,83906.0,83905.0,0.1192796]
[1744401115465,0.183551,83906.0,83905.0,0.1192396]
[1744401115666,0.183511,83906.0,83905.0,0.1192796]
[1744401115869,0.1832381,83906.0,83905.0,0.1192396]
[1744401116177,0.183511,83906.0,83905.0,0.1192396]
[1744401118275,0.183511,83906.0,83905.0,0.1501396]
[1744401120367,0.1192438,83902.0,83901.0,0.2384853]
[1744401120766,0.1841438,83902.0,83901.0,0.2384853]
[1744401121473,0.1841438,83902.0,83901.0,0.2688853]
[1744401121674,0.0331,83902.0,83901.0,0.3016853]
[1744401121868,0.0002729,83902.0,83901.0,0.3016853]
[1744401122474,0.0003129,83902.0,83901.0,0.3016853]
[1744401124378,0.0002729,83902.0,83901.0,0.3016853]
[1744401124577,0.0003129,83902.0,83901.0,0.3016853]
[1744401125682,0.0323,83904.0,83903.0,0.1192424]
[1744401126285,0.0002729,83904.0,83903.0,0.1192424]
[1744401126481,0.0002729,83904.0,83903.0,0.1511424]
[1744401129582,0.0002729,83904.0,83903.0,0.1192424]
[1744401130081,0.0003129,83904.0,83903.0,0.1192424]
[1744401130583,0.0002729,83904.0,83903.0,0.1192424]
[1744401130783,4e-05,83904.0,83903.0,0.1192424]
[1744401130987,0.00017886,83907.0,83906.0,0.1192381]
[1744401131387,0.00045176,83907.0,83906.0,0.1506381]
[1744401131682,0.00045176,83907.0,83902.0,0.0596216]
[1744401131683,0.0596219,83903.0,83902.0,0.0596216]
[1744401131982,0.1788672,83903.0,83902.0,0.0596216]
[1744401132173,0.1541219,83903.0,83902.0,0.0596216]
[1744401132981,0.0945,83903.0,83902.0,0.1192438]
[1744401133279,0.0313,83903.0,83902.0,0.4800438]
[1744401133489,0.03134,83903.0,83902.0,0.4800438]
[1744401133891,4e-05,83903.0,83902.0,0.4800438]
[1744401134081,0.00045176,83907.0,83906.0,0.1192381]
[1744401135684,0.00021886,83907.0,83906.0,0.1192381]
[1744401135883,0.00017886,83907.0,83906.0,0.1192381]
[1744401136276,0.00045176,83907.0,83906.0,0.1192381]
[1744401138995,0.48048846,83907.0,83906.0,4e-05]
[1744401139191,0.73048846,83907.0,83906.0,4e-05]
[1744401139386,0.0596212,83903.0,83892.0,0.0596284]
[1744401139585,0.1192509,83897.0,83896.0,0.40119271]
[1744401139781,0.1988909,83897.0,83896.0,0.40119271]
[1744401139986,0.2627909,83897.0,83896.0,0.40119271]
[1744401140782,0.2627909,83897.0,83896.0,0.40123271]
[1744401140985,0.2627909,83897.0,83896.0,0.40119271]
[1744401141592,0.1831509,83897.0,83896.0,0.40119271]
[1744401141790,0.1831509,83897.0,83896.0,0.43209271]
[1744401142092,0.1831509,83897.0,83896.0,0.40119271]
[1744401142489,0.1831509,83897.0,83896.0,0.40123271]
[1744401143499,0.32600941,83897.0,83896.0,0.1192915]
[1744401145897,0.32600941,83897.0,83896.0,0.1192515]
[1744401146892,0.1831509,83897.0,83896.0,0.1192515]
[1744401147284,0.1192595,83891.0,83890.0,0.00017886]
[1744401147490,0.1192708,83883.0,83882.0,0.0596361]
[1744401147795,0.4800708,83883.0,83882.0,0.0596361]
[1744401147995,0.4800708,83883.0,83882.0,0.0596761]
[1744401148389,0.5417708,83883.0,83882.0,0.0596761]
[1744401148893,0.0316,83883.0,83882.0,0.0596761]
[1744401149095,0.0301,83888.0,83887.0,0.1192652]
[1744401149296,0.1493637,83888.0,83887.0,0.1192652]
[1744401149488,0.5101637,83888.0,83887.0,0.1192652]
[1744401149897,0.1493637,83888.0,83887.0,0.1192652]
[1744401150101,0.1493637,83888.0,83887.0,0.1353628]
[1744401150401,0.1493637,83888.0,83887.0,0.1670628]
[1744401150597,0.1493637,83888.0,83887.0,0.1988628]
[1744401151294,0.1493637,83888.0,83887.0,0.1670628]
[1744401152401,0.1192666,83886.0,83885.0,0.0596333]
[1744401152595,0.1192666,83886.0,83885.0,0.07569818]
[1744401152796,0.1192751,83880.0,83879.0,5.4e-05]
[1744401152991,0.1192751,83880.0,83879.0,0.13539624]
[1744401153200,0.1809751,83880.0,83879.0,0.13539624]
[1744401153391,0.1809751,83880.0,83879.0,0.13534224]
[1744401153588,0.1809751,83880.0,83879.0,0.13538224]
[1744401154499,0.1809751,83880.0,83879.0,0.16658224]
[1744401154893,0.1809751,83880.0,83879.0,0.13538224]
[1744401155601,0.1809751,83880.0,83879.0,0.16658224]
[1744401155801,0.1809751,83880.0,83879.0,0.16654224]
[1744401156205,0.1492751,83880.0,83879.0,0.16654224]
[1744401156396,0.03,83880.0,83879.0,0.19724224]
[1744401157196,0.1492751,83880.0,83879.0,0.16654224]
[1744401157604,0.1797751,83880.0,83879.0,0.16658224]
[1744401157803,0.1797751,83880.0,83879.0,0.19958224]
[1744401158505,0.1797751,83880.0,83879.0,0.16673912]
[1744401158906,0.1797751,83880.0,83879.0,0.16669912]
[1744401159206,0.1797751,83880.0,83879.0,0.1668451]
[1744401159404,0.1797751,83880.0,83879.0,0.0475686]
[1744401159598,0.1797751,83880.0,83879.0,0.03124]
[1744401159798,0.1797751,83880.0,83879.0,0.1193165]
[1744401159999,0.1797751,83880.0,83879.0,0.1192765]
[1744401160301,0.1797751,83880.0,83879.0,0.1193165]
[1744401160500,0.1797751,83880.0,83879.0,0.16679364]
[1744401160811,0.1797751,83880.0,83879.0,0.16675364]
[1744401161601,0.1797751,83880.0,83879.0,0.19755364]
[1744401162816,0.1797751,83880.0,83879.0,0.1811765]
[1744401163711,0.1797751,83880.0,83879.0,0.1974734]
[1744401166003,0.1797751,83880.0,83879.0,0.1192765]
[1744401166202,0.1797751,83880.0,83879.0,0.13565746]
[1744401166408,0.1797751,83880.0,83879.0,0.16899746]
[1744401168714,0.1797751,83880.0,83879.0,0.01642096]
[1744401169315,0.1797751,83880.0,83879.0,0.01635044]
[1744401172717,0.1797751,83880.0,83879.0,0.04825044]
[1744401173318,0.1797751,83880.0,83879.0,4e-05]
[1744401173618,0.1192836,83874.0,83871.0,5.4e-05]
[1744401173809,0.5596836,83874.0,83873.0,0.02114337]
[1744401174010,0.6237836,83874.0,83873.0,0.02118337]
[1744401174407,0.6237836,83874.0,83873.0,0.02114337]
[1744401174606,0.6237836,83874.0,83873.0,0.02118337]
[1744401176905,0.6237836,83874.0,83873.0,0.02114337]
[1744401177218,0.6237836,83874.0,83873.0,0.02118337]
[1744401177720,0.6237836,83874.0,83873.0,0.00480909]
[1744401178414,1.0423836,83874.0,83873.0,0.02144625]
[1744401178615,1.0423836,83874.0,83873.0,0.00480909]
[1744401179016,1.0423836,83874.0,83873.0,0.00476909]
[1744401179216,1.0423836,83874.0,83873.0,0.00480909]
[1744401180211,0.1192936,83867.0,83866.0,0.0332]
[1744401180414,0.4800936,83867.0,83866.0,0.04996631]
[1744401180612,0.5767936,83867.0,83866.0,0.04996631]
[1744401181214,0.5767936,83867.0,83864.0,5.4e-05]
[1744401181215,0.1192964,83865.0,83864.0,5.4e-05]
[1744401181411,0.1192964,83865.0,83864.0,0.01683525]
[1744401181615,0.1849964,83865.0,83864.0,0.01683525]
[1744401186125,0.1520964,83865.0,83864.0,0.01683525]
[1744401187725,0.1825964,83865.0,83864.0,0.01683525]
[1744401189026,0.1193007,83862.0,83861.0,0.0324]
[1744401189227,0.5379007,83862.0,83861.0,0.0324]
[1744401189427,0.5695007,83862.0,83861.0,1e-08]
[1744401191026,0.6013007,83862.0,83861.0,1e-08]
[1744401191528,0.1193064,83858.0,83857.0,0.0306]
[1744401191837,0.1193078,83857.0,83856.0,7.29e-05]
[1744401192027,0.2136078,83857.0,83856.0,7.29e-05]
[1744401193236,0.2136078,83857.0,83856.0,0.01664642]
[1744401193829,0.1516078,83857.0,83856.0,0.01664642]
[1744401195637,0.1827078,83857.0,83856.0,0.01664642]
[1744401197234,0.1827078,83857.0,83856.0,0.01669116]
[1744401197435,0.1827078,83857.0,83856.0,7.29e-05]
[1744401197935,0.1193135,83853.0,83852.0,0.0329]
[1744401198140,0.1193135,83853.0,83852.0,0.04948459]
[1744401198342,0.1500135,83853.0,83852.0,0.04948459]
[1744401200631,0.1500135,83853.0,83852.0,0.01658459]
[1744401200830,0.1805135,83853.0,83852.0,0.01658459]
[1744401201034,0.1805135,83853.0,83852.0,0.01662459]
[1744401202143,0.1805135,83853.0,83852.0,4e-05]
[1744401202343,0.1805135,83853.0,83852.0,0.0166894]
[1744401202645,0.1805135,83853.0,83852.0,0.0166649]
[1744401202844,0.1193206,83848.0,83847.0,0.00477057]
[1744401203143,0.1193235,83846.0,83845.0,0.0326]
[1744401203543,0.1806235,83846.0,83845.0,0.0326]
[1744401204142,0.1806235,83846.0,83845.0,0.03264]
[1744401205347,0.5414235,83846.0,83845.0,0.03264]
[1744401206038,0.5104235,83846.0,83845.0,0.03264]
[1744401206440,0.4801235,83846.0,83845.0,0.1519649]
[1744401207046,0.1193235,83846.0,83845.0,0.1519649]
[1744401209749,0.10696254,83848.0,83847.0,0.119322]
[1744401210142,0.10696254,83848.0,83847.0,0.183222]
[1744401210338,0.22628314,83848.0,83847.0,0.183222]
[1744401210745,0.22628314,83848.0,83847.0,0.183262]
[1744401211049,0.22628314,83848.0,83847.0,0.183222]
[1744401211750,0.22628314,83848.0,83847.0,0.183262]
[1744401212147,0.4801206,83848.0,83847.0,0.06394]
[1744401212448,0.4801206,83848.0,83847.0,0.0307]
[1744401212449,0.5116206,83848.0,83847.0,0.0307]
[1744401212643,0.1193263,83844.0,83843.0,0.21413959]
[1744401212844,0.1193263,83844.0,83843.0,0.24543959]
[1744401213152,0.1808263,83844.0,83843.0,0.24547959]
[1744401213352,0.1508263,83844.0,83843.0,0.24547959]
[1744401213855,0.1508263,83844.0,83843.0,0.36480729]
[1744401214352,0.00017886,83854.0,83853.0,0.1193135]
[1744401214744,0.00017886,83854.0,83853.0,0.3693135]
[1744401214945,0.00017886,83854.0,83853.0,0.41784624]
[1744401215354,0.00017886,83854.0,83853.0,0.16784624]
[1744401215557,0.00017886,83854.0,83853.0,0.41784624]
[1744401216247,0.17734733,83857.0,83853.0,0.29853274]
[1744401216452,0.17734733,83857.0,83856.0,0.1193092]
[1744401216642,0.17734733,83857.0,83856.0,0.13594194]
[1744401216839,0.17734733,83857.0,83856.0,0.41784194]
[1744401217153,0.17734733,83857.0,83856.0,0.16784194]
[1744401217348,0.17734733,83857.0,83856.0,0.16788194]
[1744401217551,0.17734733,83857.0,83856.0,0.1781887]
[1744401218153,0.29665513,83857.0,83856.0,0.1781887]
[1744401219151,0.17734733,83857.0,83856.0,0.1781887]
[1744401219450,0.005,83862.0,83861.0,0.1193021]
[1744401219657,0.005,83862.0,83861.0,0.19853484]
[1744401220248,0.1243007,83862.0,83861.0,0.04833274]
[1744401220649,0.1565007,83862.0,83861.0,0.04837274]
[1744401221149,0.1565007,83862.0,83861.0,0.16758892]
[1744401221350,0.1243007,83862.0,83861.0,0.16758892]
[1744401222551,0.1243007,83862.0,83861.0,0.16759609]
[1744401223158,0.1243007,83862.0,83861.0,0.04829399]
[1744401223358,0.1875007,83862.0,83861.0,0.04825399]
[1744401223656,0.1875007,83862.0,83861.0,0.04829399]
[1744401223849,0.1551007,83862.0,83861.0,0.16759609]
[1744401224050,0.1243007,83862.0,83861.0,0.16759609]
[1744401225960,0.005,83862.0,83861.0,0.16759609]
[1744401226358,0.10708661,83872.0,83861.0,0.35794459]
[1744401226552,0.10708661,83872.0,83871.0,0.1192879]
[1744401226760,0.10708661,83872.0,83871.0,0.13584189]
[1744401226963,0.10708661,83872.0,83871.0,0.20014189]
[1744401228961,0.0596424,83874.0,83873.0,0.238564]
[1744401229262,0.0596424,83874.0,83873.0,0.25511799]
[1744401230257,0.1231424,83874.0,83873.0,0.25497068]
[1744401230457,0.0905424,83874.0,83873.0,0.28617068]
[1744401231463,0.0905424,83874.0,83873.0,0.16688988]
[1744401231658,0.1214424,83874.0,83873.0,0.16688988]
[1744401232060,0.1214424,83874.0,83873.0,0.13568988]
[1744401232258,0.4822424,83874.0,83873.0,0.0596411]
[1744401232669,0.4822424,83874.0,83873.0,0.0596811]
[1744401232865,0.4822424,83874.0,83873.0,0.0596411]
[1744401233160,0.4822424,83874.0,83873.0,0.0596811]
[1744401233361,0.1214424,83874.0,83873.0,0.0596811]
[1744401233563,0.00017886,83880.0,83879.0,0.1192765]
[1744401233859,0.00017886,83880.0,83879.0,0.13554401]
[1744401234052,0.00017886,83880.0,83879.0,0.16854401]
[1744401234850,0.00017886,83880.0,83879.0,0.20104401]
[1744401235256,6e-08,83880.0,83879.0,0.20104401]
[1744401235565,6e-08,83880.0,83879.0,0.20981928]
[1744401236561,6e-08,83880.0,83879.0,0.19355177]
[1744401237353,6e-08,83880.0,83879.0,0.20394387]
[1744401237550,6e-08,83880.0,83879.0,0.21991142]
[1744401241578,0.0331,83892.0,83879.0,0.21991142]
[1744401241579,1e-08,83897.0,83886.0,0.0596333]
[1744401241864,0.4800217,83918.0,83907.0,0.1192367]
[1744401242056,0.14283615,83912.0,83907.0,0.49600425]
[1744401242256,0.14283615,83912.0,83911.0,0.119231]
[1744401242458,0.14278214,83912.0,83911.0,0.119231]
[1744401242659,4e-05,83912.0,83911.0,0.119231]
[1744401243165,4e-05,83912.0,83911.0,0.151931]
[1744401250269,0.0326,83913.0,83912.0,0.1192296]
[1744401250468,0.005,83914.0,83913.0,0.1192282]
[1744401250666,0.005,83914.0,83913.0,0.20054732]
[1744401251166,1e-07,83914.0,83913.0,0.20054732]
[1744401251367,0.0327,83932.0,83931.0,0.1192026]
[1744401251573,0.005,83940.0,83939.0,0.1191913]
[1744401251765,1e-08,83944.0,83941.0,0.0595935]
[1744401251966,0.12829985,83955.0,83954.0,0.11917]
[1744401252160,0.1191686,83955.0,83954.0,0.11917]
[1744401252358,0.1191799,83947.0,83946.0,0.00017875]
[1744401252765,0.3691799,83947.0,83946.0,0.00017875]
[1744401252964,0.3691799,83947.0,83946.0,0.11936005]
[1744401253168,0.1191799,83947.0,83946.0,0.11936005]
[1744401253364,0.1820799,83947.0,83946.0,0.11936005]
[1744401254370,0.1820799,83947.0,83946.0,0.00017875]
[1744401255079,0.1820799,83947.0,83946.0,0.11936005]
[1744401255572,0.0629,83947.0,83946.0,0.11936005]
[1744401256174,0.06294,83947.0,83946.0,0.11936005]
[1744401256583,0.0325,83956.0,83955.0,0.1191686]
[1744401256773,0.0325,83956.0,83955.0,0.4799686]
[1744401257174,0.1517071,83956.0,83955.0,0.4799686]
[1744401258878,0.1836071,83956.0,83955.0,0.4799686]
[1744401259375,0.1836071,83956.0,83955.0,0.3608]
[1744401259578,0.1836071,83956.0,83955.0,0.4799686]
[1744401259777,0.2149071,83956.0,83955.0,0.4799686]
[1744401260179,0.2149071,83956.0,83955.0,0.3608]
[1744401261083,0.2149071,83956.0,83955.0,0.4799686]
[1744401261476,0.2149071,83956.0,83955.0,0.3608]
[1744401261678,0.1191799,83947.0,83946.0,0.17894895]
[1744401262181,0.1824799,83947.0,83946.0,0.00017875]
[1744401265978,0.1824799,83947.0,83925.0,0.12397693]
[1744401265979,0.7319,83947.0,83925.0,0.12397693]
[1744401266179,0.1192083,83927.0,83926.0,0.01623892]
[1744401266584,0.2129083,83927.0,83926.0,0.01623892]
[1744401267572,0.1192197,83919.0,83918.0,0.00017875]
[1744401267779,0.4800197,83919.0,83918.0,0.00017875]
[1744401267977,0.5414197,83919.0,83918.0,0.00017875]
[1744401268281,0.5414197,83919.0,83918.0,0.00021875]
[1744401268875,0.5414197,83919.0,83918.0,0.00017875]
[1744401269079,0.5414197,83919.0,83903.0,0.35712844]
[1744401269080,0.1192381,83906.0,83905.0,0.22295503]
[1744401269385,0.1192381,83906.0,83905.0,0.21413325]
[1744401269585,0.2144381,83906.0,83905.0,0.33337285]
[1744401270082,0.2144381,83906.0,83905.0,0.21413325]
[1744401270281,0.2144381,83906.0,83905.0,0.33341285]
[1744401270282,0.065,83906.0,83905.0,0.33341285]
[1744401270491,0.03324,83906.0,83905.0,0.39681285]
[1744401271082,0.1524781,83906.0,83905.0,0.39681285]
[1744401271281,0.1524781,83906.0,83905.0,0.22307192]
[1744401271282,0.5132781,83906.0,83905.0,0.22307192]
[1744401271478,0.5132781,83906.0,83905.0,0.21413325]
[1744401271680,0.03324,83906.0,83905.0,0.33341285]
[1744401271979,0.03324,83906.0,83905.0,0.33337285]
[1744401272180,0.03324,83906.0,83905.0,0.36641285]
[1744401272677,4e-05,83906.0,83905.0,0.75751285]
[1744401272877,0.0308,83911.0,83910.0,0.1192325]
[1744401273088,0.150031,83911.0,83910.0,0.1192325]
[1744401273478,0.150031,83911.0,83910.0,0.1799325]
[1744401274185,0.150031,83911.0,83910.0,0.0303]
[1744401274377,0.1192381,83906.0,83905.0,0.0088438]
[1744401274582,0.0596183,83908.0,83903.0,0.12102873]
[1744401274583,0.119241,83904.0,83903.0,0.00178773]
[1744401275086,0.119241,83904.0,83903.0,0.00182773]
[1744401275087,0.151641,83904.0,83903.0,0.00182773]
[1744401275584,0.151641,83904.0,83903.0,4e-05]
[1744401275886,0.151641,83904.0,83899.0,0.00476761]
[1744401275887,0.1192467,83900.0,83899.0,0.00476761]
[1744401276073,0.1192467,83900.0,83899.0,0.12401571]
[1744401276273,0.1192467,83900.0,83899.0,0.00476761]
[1744401276689,0.1192467,83900.0,83899.0,0.00480761]
[1744401277079,0.1823467,83900.0,83899.0,0.00480761]
[1744401278784,0.1823467,83900.0,83899.0,0.12405571]
[1744401278980,0.1823467,83900.0,83899.0,0.00480761]
[1744401279589,0.1823467,83900.0,83899.0,0.03550761]
[1744401280087,0.1823467,83900.0,83899.0,0.15475571]
[1744401280284,5.401e-05,83919.0,83910.0,0.0596162]
[1744401280585,0.07028134,83937.0,83931.0,0.0596013]
[1744401280781,1e-08,83948.0,83936.0,0.7216]
[1744401280987,0.0308,83991.0,83947.0,0.3608]
[1744401281177,9.842e-05,83982.0,83981.0,0.1786974]
[1744401281676,9.842e-05,83982.0,83981.0,0.0308]
[1744401281876,0.1191302,83982.0,83981.0,0.0308]
[1744401282078,0.1191416,83974.0,83973.0,0.00017864]
[1744401282988,0.1827416,83974.0,83973.0,0.00017864]
[1744401283692,0.1191558,83964.0,83963.0,0.0308]
[1744401284088,0.1191615,83960.0,83959.0,0.0595813]
[1744401284283,0.062,83963.0,83954.0,0.0595844]
[1744401284485,0.0595834,83957.0,83956.0,0.1191667]
[1744401284690,0.0595834,83957.0,83956.0,0.12825539]
[1744401284896,0.1208834,83957.0,83956.0,0.12825539]
[1744401285388,0.1191714,83953.0,83952.0,0.38764071]
[1744401285578,0.4799714,83953.0,83952.0,0.35534071]
[1744401285983,0.1191714,83953.0,83952.0,0.47451351]
[1744401286192,0.1191714,83953.0,83952.0,0.35534071]
[1744401287089,0.5592514,83953.0,83952.0,0.35534071]
[1744401287893,0.5592514,83953.0,83952.0,0.30544071]
[1744401288089,0.5593994,83953.0,83952.0,0.30544071]
[1744401288486,1.2279994,83953.0,83952.0,0.30544071]
[1744401288692,0.1191813,83946.0,83945.0,0.42482096]
[1744401288892,0.5377813,83946.0,83945.0,0.42482096]
[1744401289098,0.1191927,83938.0,83935.0,0.1191962]
[1744401289298,0.1984727,83938.0,83933.0,0.0595997]
[1744401289492,0.1984727,83938.0,83928.0,0.00127461]
[1744401289493,0.1192055,83929.0,83928.0,0.00127461]
[1744401290294,0.1192055,83929.0,83922.0,0.21239317]
[1744401290295,0.1192097,83926.0,83922.0,0.21239317]
[1744401290595,0.1192097,83926.0,83925.0,0.48481733]
[1744401290783,0.1192097,83926.0,83925.0,0.48477733]
[1744401290982,0.1192497,83926.0,83925.0,0.00476613]